bitfinex/quotes_ETHUSD_20250802
["timestamp","ask_amount","ask_price","bid_price","bid_amount"]
[1754125480073,0.9298,3501.7,3501.6,0.1424]
[1754125480274,0.9298,3501.7,3501.6,4.5974]
[1754125480771,0.9298,3501.7,3501.6,0.1424]
[1754125480954,0.9298,3501.7,3501.3,4.454]
[1754125481270,0.001,3501.8,3501.3,4.454]
[1754125481271,1.0722,3501.6,3501.3,4.454]
[1754125481478,0.1424,3501.6,3501.3,4.454]
[1754125481630,0.9298,3501.5,3501.2,4.454]
[1754125481834,0.1424,3501.6,3501.2,4.454]
[1754125482168,0.9298,3501.4,3501.1,0.1432]
[1754125482374,0.9298,3501.3,3501.2,4.454]
[1754125483259,0.1424,3501.6,3501.2,4.454]
[1754125483433,0.4709,3501.5,3501.2,5.76163136]
[1754125484081,0.4709,3501.4,3501.2,5.76163136]
[1754125484267,0.4589,3501.4,3501.2,5.76163136]
[1754125484590,0.9298,3501.3,3501.1,0.1432]
[1754125484741,0.4589,3501.3,3501.2,4.454]
[1754125484932,0.9298,3501.3,3501.2,4.454]
[1754125485134,0.9298,3501.3,3501.1,0.1432]
[1754125485376,0.4589,3501.3,3501.2,4.454]
[1754125486086,0.9298,3501.3,3501.2,4.454]
[1754125490477,0.9298,3501.3,3501.2,4.453]
[1754125492240,0.1424,3501.7,3501.2,4.453]
[1754125492476,0.001,3501.8,3501.6,5.49089193]
[1754125493173,0.8988,3501.7,3501.6,5.49089193]
[1754125494077,0.001,3501.8,3501.6,9.94389193]
[1754125494681,0.4703,3501.8,3501.6,9.94389193]
[1754125494976,0.001,3501.8,3501.6,9.94389193]
[1754125495353,0.001,3501.8,3501.6,10.95252112]
[1754125495669,0.001,3501.8,3501.7,0.1424]
[1754125497680,0.001,3501.8,3501.7,0.6186]
[1754125499479,0.001,3501.8,3501.7,0.1424]
[1754125499684,0.001,3501.8,3501.7,1.08645755]
[1754125499885,0.001,3501.8,3501.7,2.26179787]
[1754125500749,0.001,3501.8,3501.7,5.79729787]
[1754125501470,0.001,3501.8,3501.7,1.34629787]
[1754125501785,0.001,3501.8,3501.7,5.79729787]
[1754125502782,0.001,3501.8,3501.7,6.27349787]
[1754125502982,0.001,3501.8,3501.7,7.18209787]
[1754125504488,0.001,3502.3,3501.8,0.55]
[1754125504690,0.001,3502.3,3502.2,5.49089193]
[1754125504988,0.001,3502.3,3502.2,9.94089193]
[1754125505509,0.001,3502.3,3502.2,10.08329193]
[1754125505679,0.001,3502.3,3502.2,4.5924]
[1754125505680,0.8998,3502.3,3502.2,4.5924]
[1754125506583,0.8998,3502.3,3502.2,0.1424]
[1754125506778,0.8998,3502.3,3502.2,4.45]
[1754125508075,0.001,3502.3,3502.2,5.45832919]
[1754125508486,0.4703,3502.3,3502.2,5.45832919]
[1754125508826,0.8998,3502.3,3502.2,5.45832919]
[1754125509304,0.8998,3502.3,3502.2,4.45]
[1754125510103,0.8998,3502.3,3502.2,4.449]
[1754125510280,0.8998,3502.3,3501.7,5.49089193]
[1754125510485,0.8988,3502.2,3501.9,0.1424]
[1754125510685,0.8988,3502.2,3502.0,9.93989193]
[1754125510881,0.8988,3502.1,3501.9,0.1424]
[1754125511083,0.001,3502.3,3501.9,0.1424]
[1754125511282,0.001,3502.3,3502.0,4.449]
[1754125511603,0.8988,3502.2,3502.0,4.449]
[1754125511803,1.0412,3502.1,3502.0,4.449]
[1754125512006,1.0412,3502.1,3501.6,0.1424]
[1754125512212,1.722,3502.1,3501.7,4.449]
[1754125512372,0.1424,3501.8,3501.5,4.448]
[1754125512574,0.8988,3501.7,3501.5,4.448]
[1754125512979,0.1424,3501.8,3501.5,4.448]
[1754125512980,0.8988,3501.6,3501.5,4.448]
[1754125513401,1.0412,3501.6,3501.5,4.448]
[1754125514892,1.0412,3501.6,3501.4,4.448]
[1754125515091,0.8988,3501.5,3501.4,4.448]
[1754125515695,0.4693,3501.5,3501.4,4.448]
[1754125516422,0.8988,3501.5,3501.4,4.448]
[1754125517514,0.4693,3501.5,3501.4,4.448]
[1754125519017,0.8988,3501.5,3501.4,4.448]
[1754125521228,0.4693,3501.5,3501.4,4.448]
[1754125522453,0.1424,3501.9,3501.4,6.06910919]
[1754125522594,1.1113,3502.1,3501.9,5.49089193]
[1754125522791,1.1113,3502.1,3501.9,9.93789193]
[1754125523035,0.001,3502.2,3501.9,9.93789193]
[1754125523598,0.5001,3502.2,3501.9,9.93789193]
[1754125523800,0.001,3502.2,3501.9,10.08029193]
[1754125523999,0.001,3502.2,3502.0,0.909]
[1754125524207,0.001,3502.2,3502.1,4.447]
[1754125524845,0.5001,3502.2,3501.9,1.24132919]
[1754125525138,0.5001,3502.2,3501.8,4.446]
[1754125525139,2.6909,3502.1,3501.8,4.446]
[1754125525296,0.1424,3502.0,3501.7,4.446]
[1754125525634,1.1113,3502.0,3501.7,4.446]
[1754125525830,0.9689,3501.9,3501.7,4.446]
[1754125526035,0.9689,3501.8,3501.7,4.446]
[1754125529104,0.1424,3502.0,3501.7,4.446]
[1754125529343,0.1424,3502.0,3501.9,5.49089193]
[1754125529544,0.1424,3502.0,3501.9,9.93689193]
[1754125530040,0.1434,3502.2,3501.9,9.93689193]
[1754125531460,4.446,3504.1,3502.0,0.4697]
[1754125531628,2.1918,3502.9,3502.1,5.62805919]
[1754125531939,0.1424,3502.7,3502.2,5.49089193]
[1754125532104,0.1424,3502.7,3502.3,4.445]
[1754125532307,0.1424,3502.7,3502.5,5.49089193]
[1754125532522,0.1424,3502.8,3502.5,9.93589193]
[1754125532727,0.4991,3502.9,3502.5,10.07829193]
[1754125533004,0.1434,3503.0,3502.5,10.07829193]
[1754125533210,0.1434,3503.0,3502.5,11.64672112]
[1754125534319,1.1123,3503.0,3502.5,11.17702112]
[1754125534707,0.6425,3503.0,3502.5,11.17702112]
[1754125535041,0.9689,3502.9,3502.5,11.17702112]
[1754125535246,0.9689,3502.8,3502.5,4.5874]
[1754125535442,0.4991,3502.7,3502.5,4.5874]
[1754125537468,1.8654,3503.0,3502.5,0.1424]
[1754125537608,1.8654,3503.0,3502.2,4.444]
[1754125537609,1.1113,3502.6,3502.2,4.444]
[1754125537808,1.1113,3502.6,3502.1,0.1424]
[1754125537809,0.9689,3502.5,3502.3,4.444]
[1754125538009,0.4991,3502.4,3502.3,4.444]
[1754125538321,0.9689,3502.4,3502.3,4.444]
[1754125538707,0.9689,3502.4,3502.1,0.1424]
[1754125539048,1.1113,3502.3,3501.8,0.1424]
[1754125539341,1.1113,3502.3,3501.8,0.70572919]
[1754125539542,0.1424,3502.3,3501.8,5.14872919]
[1754125539749,0.1424,3502.3,3502.0,5.49089193]
[1754125540628,0.1424,3502.3,3502.0,9.93389193]
[1754125541144,0.4991,3502.5,3502.0,9.93389193]
[1754125541448,1.1113,3502.4,3502.0,4.443]
[1754125541760,2.6909,3502.3,3502.1,4.443]
[1754125542067,0.9689,3502.2,3501.9,4.443]
[1754125542541,0.9689,3502.1,3501.9,4.443]
[1754125542861,0.4991,3502.0,3501.9,4.443]
[1754125543851,0.9689,3502.0,3501.7,4.442]
[1754125544027,0.4991,3501.9,3501.7,5.44952919]
[1754125545358,0.4991,3501.9,3501.7,10.94042112]
[1754125545724,0.4698,3502.0,3501.7,10.94042112]
[1754125545928,0.9689,3502.0,3501.7,10.94042112]
[1754125546137,0.4698,3501.9,3501.7,4.442]
[1754125546363,0.4991,3501.9,3501.7,4.442]
[1754125546591,0.4991,3501.9,3501.6,4.442]
[1754125546592,0.4698,3501.8,3501.6,4.442]
[1754125546795,0.9689,3501.7,3501.6,4.442]
[1754125546970,0.9689,3501.7,3501.6,5.44952919]
[1754125547371,3.0,3502.9,3501.6,10.94042112]
[1754125547372,0.1424,3501.9,3501.6,10.94042112]
[1754125548368,0.4991,3501.8,3501.6,10.94042112]
[1754125549310,0.4991,3501.7,3501.4,0.1452]
[1754125549513,0.4991,3501.7,3501.5,4.442]
[1754125549866,0.4698,3501.8,3501.5,4.442]
[1754125550065,0.9689,3501.8,3501.6,5.49089193]
[1754125550481,0.001,3502.2,3501.6,5.49089193]
[1754125550482,0.001,3502.2,3501.7,0.4697]
[1754125550718,0.001,3502.2,3501.9,5.49089193]
[1754125551026,0.4991,3502.1,3501.9,5.49089193]
[1754125552716,0.9599,3502.0,3501.8,4.442]
[1754125553014,0.4898,3502.0,3501.8,4.442]
[1754125553228,0.1424,3502.1,3501.9,5.49089193]
[1754125553958,0.4898,3502.0,3501.8,5.54887811]
[1754125554127,0.4898,3502.0,3501.8,4.442]
[1754125554984,0.6125,3502.1,3501.8,4.442]
[1754125555218,0.1424,3502.1,3501.8,4.442]
[1754125556525,0.1424,3502.1,3501.6,0.1424]
[1754125556738,0.1424,3501.7,3501.4,0.002]
[1754125556888,30.0,3501.4,3500.5,0.002]
[1754125557236,0.55,3500.6,3500.0,2.857142]
[1754125557561,4.722,3500.1,3500.0,2.857142]
[1754125557919,5.6819,3500.1,3500.0,2.857142]
[1754125559626,10.1229,3500.1,3500.0,2.857142]
[1754125560229,36.35424254,3500.1,3500.0,2.857142]
[1754125560417,41.01103434,3500.1,3500.0,2.857142]
[1754125560803,41.56103434,3500.1,3500.0,2.857142]
[1754125561468,41.70650576,3500.1,3500.0,2.857142]
[1754125562112,39.98550576,3500.1,3500.0,2.857142]
[1754125562310,35.54350576,3500.1,3500.0,2.857142]
[1754125562647,39.84003434,3500.1,3500.0,2.857142]
[1754125562841,35.54165179,3500.1,3500.0,2.857142]
[1754125563010,35.39803434,3500.1,3500.0,2.857142]
[1754125563210,39.84003434,3500.1,3500.0,2.857142]
[1754125563937,46.84003434,3500.1,3500.0,2.857142]
[1754125564141,46.29003434,3500.1,3500.0,2.857142]
[1754125564316,10.7055918,3500.1,3500.0,2.857142]
[1754125564645,14.6577918,3500.1,3500.0,2.857142]
[1754125565618,46.1676918,3500.1,3500.0,2.857142]
[1754125566123,41.7256918,3500.1,3500.0,2.857142]
[1754125566452,44.04393887,3500.1,3500.0,2.857142]
[1754125566652,10.2157918,3500.1,3500.0,2.857142]
[1754125566827,14.6577918,3500.1,3500.0,2.857142]
[1754125567027,14.8009918,3500.1,3500.0,2.857142]
[1754125567337,15.7608918,3500.1,3500.0,2.857142]
[1754125567523,45.7608918,3500.1,3500.0,2.857142]
[1754125567730,49.17913887,3500.1,3500.0,2.857142]
[1754125568140,50.90113887,3500.1,3500.0,2.857142]
[1754125569220,53.75820009,3500.1,3500.0,2.857142]
[1754125569966,53.75820009,3500.1,3500.0,2.859142]
[1754125570117,51.18743887,3500.1,3500.0,2.859142]
[1754125570320,51.57291125,3500.1,3500.0,1.96566012]
[1754125570545,54.04450009,3500.1,3500.0,1.96566012]
[1754125570942,51.18743887,3500.1,3500.0,1.96566012]
[1754125571487,54.04450009,3500.1,3500.0,1.96566012]
[1754125571626,54.04450009,3500.1,3500.0,0.53266012]
[1754125572441,51.18743887,3500.1,3500.0,0.53266012]
[1754125572643,50.90213887,3500.1,3500.0,0.53266012]
[1754125572967,50.35213887,3500.1,3500.0,0.53266012]
[1754125573827,45.90913887,3500.1,3500.0,0.53266012]
[1754125574018,49.39223887,3500.1,3500.0,0.53266012]
[1754125574224,13.5239918,3500.1,3500.0,0.53266012]
[1754125574455,9.0809918,3500.1,3500.0,0.53266012]
[1754125574753,13.5239918,3500.1,3500.0,0.53266012]
[1754125575063,13.5239918,3500.1,3500.0,1.43656012]
[1754125575270,16.5239918,3500.1,3500.0,1.43656012]
[1754125575762,11.443,3500.1,3500.0,1.58021613]
[1754125576122,7.0,3500.1,3500.0,1.58021613]
[1754125577722,7.0,3500.1,3500.0,1.72341613]
[1754125578357,4.2109375,3500.1,3500.0,1.72341613]
[1754125579159,6.9999975,3500.1,3500.0,1.72341613]
[1754125579317,6.29560231,3500.1,3500.0,1.72341613]
[1754125580262,6.99999231,3500.1,3500.0,1.72341613]
[1754125581468,4.442,3500.9,3500.0,1.72341613]
[1754125581652,4.442,3501.0,3500.1,1.80456214]
[1754125581957,0.1432,3501.2,3500.7,0.1432]
[1754125581958,4.442,3501.1,3500.7,0.1432]
[1754125582362,4.442,3501.1,3500.8,0.4842]
[1754125584466,4.442,3501.1,3500.7,0.5825]
[1754125584467,0.9152,3501.0,3500.7,0.1432]
[1754125584626,0.9152,3501.0,3500.1,6.24656214]
[1754125584961,1.0584,3501.0,3500.5,0.1432]
[1754125585258,0.9152,3500.9,3500.2,1.03621783]
[1754125585478,4.5852,3500.8,3500.3,0.1432]
[1754125585825,4.5852,3500.8,3500.4,0.4842]
[1754125586055,4.5852,3500.8,3500.3,0.6274]
[1754125586260,4.5852,3500.8,3500.4,0.19477621]
[1754125586467,4.442,3500.8,3500.4,0.67897621]
[1754125587664,4.442,3500.8,3500.4,0.19477621]
[1754125590271,0.9152,3500.7,3500.3,0.1432]
[1754125590480,0.4864,3500.6,3500.3,0.1432]
[1754125590961,1.0584,3500.5,3500.1,1.32036214]
[1754125591256,0.9152,3500.4,3500.0,0.81951613]
[1754125591460,0.9152,3500.4,3500.0,0.67586012]
[1754125592039,0.4864,3500.3,3500.0,0.67586012]
[1754125593466,0.4864,3500.2,3500.0,0.67586012]
[1754125593642,0.4288,3500.3,3500.0,0.67586012]
[1754125593843,0.6296,3500.5,3500.0,0.67586012]
[1754125594045,0.4864,3500.4,3500.0,0.67586012]
[1754125594348,0.9152,3500.4,3500.0,0.67586012]
[1754125594555,0.4864,3500.4,3500.0,0.67586012]
[1754125594843,0.1432,3500.5,3500.0,0.67586012]
[1754125595257,0.6296,3500.5,3500.0,0.67586012]
[1754125596162,0.9152,3500.4,3500.0,0.67586012]
[1754125596475,0.4864,3500.3,3500.0,0.67586012]
[1754125596967,0.1432,3500.5,3500.0,0.67586012]
[1754125597165,0.4864,3500.2,3500.0,0.53266012]
[1754125597338,0.1432,3500.5,3500.0,0.53266012]
[1754125597537,0.4864,3500.1,3500.0,0.53266012]
[1754125599330,0.4288,3500.2,3500.0,0.53266012]
[1754125599564,0.572,3500.5,3500.0,0.53266012]
[1754125599766,0.4864,3500.2,3500.0,0.53266012]
[1754125600044,0.9152,3500.2,3500.0,0.53266012]
[1754125601367,2.2084,3500.1,3500.0,0.53266012]
[1754125601576,0.4864,3500.1,3500.0,0.53266012]
[1754125602172,0.9152,3500.1,3500.0,0.53266012]
[1754125602976,0.4864,3500.1,3500.0,0.53266012]
[1754125603990,0.4864,3500.4,3500.0,0.53266012]
[1754125604484,0.4288,3500.4,3500.0,0.53266012]
[1754125604679,0.4864,3500.3,3500.0,0.53266012]
[1754125604871,0.4864,3500.3,3500.1,5.49395476]
[1754125605250,0.4864,3500.3,3500.1,6.11093625]
[1754125607692,0.1432,3500.5,3500.1,6.11093625]
[1754125607990,0.1432,3500.5,3500.1,6.59513625]
[1754125608290,0.001,3500.8,3500.4,5.49395476]
[1754125608450,0.001,3500.8,3500.7,5.49395476]
[1754125609295,0.001,3500.8,3500.7,6.41745476]
[1754125609581,0.001,3500.8,3500.7,6.56065476]
[1754125610892,0.001,3500.8,3500.7,9.53587078]
[1754125611219,0.4874,3502.2,3500.8,3.55]
[1754125611430,0.4874,3502.2,3501.5,8.46917078]
[1754125611431,0.001,3502.2,3501.5,8.46917078]
[1754125611729,0.001,3502.2,3501.9,0.1424]
[1754125612520,0.001,3502.2,3502.0,9.42122589]
[1754125612692,0.001,3502.2,3502.1,0.17095429]
[1754125613076,0.001,3502.2,3502.1,0.4842]
[1754125613277,0.001,3502.2,3502.1,1.33933708]
[1754125614488,0.001,3502.2,3502.0,4.439]
[1754125615479,0.001,3502.2,3501.9,4.439]
[1754125618716,0.001,3502.2,3502.0,9.39267078]
[1754125619015,0.001,3502.2,3502.1,0.02855429]
[1754125619382,0.001,3502.2,3502.1,0.95205429]
[1754125619682,0.001,3502.2,3502.1,2.30952251]
[1754125620282,0.001,3502.2,3502.1,1.87022251]
[1754125620714,0.001,3502.2,3502.1,2.30952251]
[1754125621596,0.001,3502.2,3502.1,1.87022251]
[1754125622035,0.001,3502.2,3502.1,2.3380768]
[1754125622339,0.001,3502.2,3502.1,1.8538768]
[1754125622509,0.001,3502.2,3502.1,2.30952251]
[1754125622910,0.001,3502.2,3502.1,5.96542251]
[1754125623149,0.001,3502.2,3502.1,4.5794]
[1754125623324,0.001,3502.2,3502.1,5.0636]
[1754125624153,0.001,3503.0,3502.1,5.5029]
[1754125624313,0.001,3503.0,3502.5,8.61157078]
[1754125624513,0.001,3503.0,3502.5,14.00207786]
[1754125624834,0.001,3503.0,3502.5,14.92557786]
[1754125627514,0.001,3503.0,3502.6,0.55]
[1754125627753,0.001,3503.0,3502.7,4.436]
[1754125627951,0.001,3503.0,3502.7,4.8753]
[1754125628158,0.001,3503.0,3502.9,0.1424]
[1754125628320,0.001,3503.0,3502.9,4.5784]
[1754125630296,0.4697,3503.0,3502.9,4.5784]
[1754125631581,0.001,3503.4,3502.9,4.5784]
[1754125631752,0.001,3503.4,3503.1,8.46917078]
[1754125631955,0.001,3503.4,3503.3,0.1424]
[1754125632343,0.4697,3503.4,3503.3,0.1424]
[1754125632544,0.913,3503.4,3503.3,0.1424]
[1754125634395,0.001,3503.4,3503.3,4.5764]
[1754125634564,0.001,3503.4,3503.3,6.05393879]
[1754125635364,0.913,3503.4,3503.3,6.05393879]
[1754125635753,0.913,3503.4,3503.3,4.5764]
[1754125635949,0.913,3503.4,3503.3,0.1424]
[1754125636565,0.913,3503.4,3502.8,4.434]
[1754125636813,2.7724,3503.3,3502.8,0.1424]
[1754125637110,0.912,3503.2,3502.8,0.1424]
[1754125637415,1.718,3503.2,3502.7,0.1424]
[1754125637620,0.912,3503.1,3502.7,0.1424]
[1754125637925,0.912,3503.1,3502.7,0.60004]
[1754125638075,0.912,3503.0,3502.9,0.1424]
[1754125638276,0.4687,3503.0,3502.9,0.1424]
[1754125638586,0.912,3503.0,3502.9,0.1424]
[1754125639378,0.4433,3503.0,3502.9,0.1424]
[1754125639580,0.912,3503.0,3502.9,0.1424]
[1754125640211,0.912,3503.0,3502.7,0.45764]
[1754125640212,0.912,3503.0,3502.7,0.1424]
[1754125640411,0.1424,3503.2,3502.7,0.1424]
[1754125640627,0.912,3502.9,3502.7,0.1424]
[1754125640928,0.912,3502.8,3502.7,0.1424]
[1754125645534,2.63,3502.8,3502.7,0.1424]
[1754125645709,2.893,3502.8,3501.6,4.433]
[1754125645904,0.1424,3502.5,3502.0,0.1424]
[1754125646105,0.1424,3502.5,3502.1,0.02855429]
[1754125646304,0.1424,3502.7,3502.2,0.1424]
[1754125646510,0.4956,3502.6,3502.2,0.1424]
[1754125649232,0.4606,3502.6,3502.2,0.1424]
[1754125649444,0.4956,3502.5,3502.2,0.1424]
[1754125650530,0.1424,3502.8,3502.3,8.46917078]
[1754125650706,0.638,3503.1,3502.4,1.00355708]
[1754125650922,0.638,3503.1,3502.6,0.1424]
[1754125651119,0.1424,3503.1,3502.6,0.1424]
[1754125651295,0.4956,3503.0,3502.6,0.1424]
[1754125651917,0.4956,3503.3,3502.4,0.86115708]
[1754125652114,0.4956,3503.3,3502.9,0.1424]
[1754125652498,0.604,3503.4,3502.9,0.1424]
[1754125652499,0.9562,3503.2,3502.9,0.1424]
[1754125652700,0.4956,3503.1,3502.9,0.1424]
[1754125652895,0.639,3503.4,3503.0,5.48452162]
[1754125653127,0.1434,3503.4,3503.0,5.48452162]
[1754125653334,0.9562,3503.3,3503.0,5.48452162]
[1754125653642,2.6742,3503.2,3502.7,0.1424]
[1754125653942,0.1424,3502.8,3501.7,9.91652162]
[1754125654241,0.001,3503.4,3502.0,0.1424]
[1754125654242,0.1424,3502.5,3502.0,0.1424]
[1754125654603,0.9562,3502.4,3502.0,0.1424]
[1754125654812,0.1424,3502.5,3502.0,0.1424]
[1754125655008,0.9562,3502.4,3502.0,0.1424]
[1754125655240,0.1424,3502.5,3502.0,0.1424]
[1754125655399,0.9562,3502.3,3502.0,0.1424]
[1754125655627,2.321,3502.5,3502.0,0.1424]
[1754125655829,1.718,3502.7,3502.0,0.4756]
[1754125656038,0.1424,3502.7,3502.2,0.1424]
[1754125656228,4.8753,3503.1,3501.7,4.8713]
[1754125656229,0.4956,3503.1,3502.3,8.97185099]
[1754125656456,0.4956,3503.1,3502.8,0.1424]
[1754125657063,0.4616,3503.3,3502.9,0.02854777]
[1754125657282,0.9572,3503.3,3502.8,0.17094858]
[1754125657631,0.9572,3503.3,3502.8,0.1424]
[1754125657833,0.001,3503.3,3503.2,0.1424]
[1754125658053,0.001,3503.3,3503.2,1.0573]
[1754125659145,0.001,3503.3,3503.2,1.46588478]
[1754125659551,0.001,3503.3,3503.2,2.01588478]
[1754125660146,0.001,3503.3,3503.2,1.02658478]
[1754125660497,0.001,3503.3,3503.2,5.45758478]
[1754125660696,0.001,3503.3,3503.2,4.98198478]
[1754125661371,0.001,3503.3,3503.2,5.45758478]
[1754125662148,0.001,3503.3,3503.2,5.89688478]
[1754125662880,0.001,3504.1,3503.3,0.55]
[1754125663096,0.001,3504.1,3503.9,8.46769833]
[1754125664082,0.001,3504.1,3504.0,0.1424]
[1754125664583,0.4616,3504.1,3504.0,0.1424]
[1754125664747,0.4616,3504.1,3503.8,4.43]
[1754125664943,0.4956,3504.0,3503.9,0.1424]
[1754125665365,0.9562,3504.0,3503.9,0.1424]
[1754125667731,0.001,3504.1,3503.9,0.1424]
[1754125667901,0.9562,3504.0,3503.9,0.1424]
[1754125668099,0.9562,3504.0,3503.9,0.59964]
[1754125668284,0.001,3504.1,3503.9,0.59964]
[1754125668534,0.001,3504.1,3503.9,9.06733833]
[1754125668727,0.4966,3504.1,3503.9,0.59964]
[1754125669022,0.001,3504.1,3503.9,0.59964]
[1754125669198,0.001,3504.1,3504.0,0.502964]
[1754125669995,0.9572,3504.1,3503.5,1.09308716]
[1754125670205,0.4616,3504.1,3503.2,4.429]
[1754125670481,0.4956,3504.0,3503.2,4.429]
[1754125670720,0.4606,3503.9,3503.3,4.429]
[1754125670919,0.001,3504.1,3503.1,4.429]
[1754125671106,0.4956,3503.8,3503.1,4.429]
[1754125671496,1.718,3503.6,3503.1,4.429]
[1754125671698,0.001,3504.1,3502.7,1.32236983]
[1754125671699,0.9406,3503.5,3502.7,0.84676983]
[1754125671898,0.9406,3503.4,3502.9,8.46769833]
[1754125673125,0.9406,3503.8,3503.0,4.9116]
[1754125673304,0.9406,3503.8,3503.1,1.38185983]
[1754125673484,0.4959,3503.7,3503.1,1.38185983]
[1754125673689,0.4447,3503.6,3503.0,4.429]
[1754125673888,0.4959,3503.5,3503.0,4.429]
[1754125674089,0.9406,3503.4,3503.0,4.429]
[1754125674533,0.9406,3503.7,3503.0,4.429]
[1754125674822,0.4959,3503.6,3502.9,4.429]
[1754125675022,0.4959,3503.8,3502.9,4.9116]
[1754125675263,0.4959,3503.8,3502.9,4.429]
[1754125675484,0.4959,3503.8,3502.6,8.46769833]
[1754125675485,2.1627,3503.7,3502.6,8.46769833]
[1754125675771,0.9406,3503.6,3502.7,4.434]
[1754125675925,0.9406,3503.5,3502.7,4.434]
[1754125676123,0.9406,3503.4,3502.7,4.434]
[1754125676319,0.001,3504.1,3502.7,4.434]
[1754125676537,0.4959,3503.5,3502.8,1.37484682]
[1754125677453,1.718,3503.4,3502.6,0.84676983]
[1754125677623,1.718,3503.4,3502.6,4.435]
[1754125677823,0.9406,3503.3,3502.6,4.435]
[1754125678634,0.9406,3503.2,3502.6,4.435]
[1754125678861,0.9406,3503.1,3502.6,4.435]
[1754125679030,0.4959,3503.1,3503.0,0.002]
[1754125679572,0.9406,3503.4,3503.0,0.002]
[1754125679961,0.4959,3503.3,3503.0,0.002]
[1754125680126,0.4959,3503.3,3503.0,0.1444]
[1754125680326,0.1424,3503.5,3503.0,0.1444]
[1754125680532,0.6383,3503.8,3503.3,0.1424]
[1754125680927,0.9406,3503.7,3503.3,0.1424]
[1754125681250,0.1424,3503.8,3503.3,0.1424]
[1754125681641,0.9406,3503.7,3503.3,0.1424]
[1754125682086,0.4959,3503.6,3503.3,0.1424]
[1754125682469,0.4959,3503.8,3503.5,0.1424]
[1754125682691,0.4959,3503.7,3503.5,0.1424]
[1754125683403,0.4959,3503.6,3503.5,0.1424]
[1754125684117,0.9406,3503.6,3503.0,0.002]
[1754125684410,0.9406,3503.6,3503.2,0.1424]
[1754125685271,0.4447,3503.9,3503.0,5.38215983]
[1754125685473,0.4959,3503.8,3503.4,0.1424]
[1754125685682,0.9406,3503.8,3503.0,5.38215983]
[1754125685978,0.9406,3503.8,3503.0,5.86475983]
[1754125685979,0.4959,3503.8,3503.0,5.86475983]
[1754125686297,0.4959,3503.8,3503.4,0.1424]
[1754125686499,0.5871,3503.9,3503.4,0.1424]
[1754125686500,0.4959,3503.7,3503.4,0.1424]
[1754125686670,0.9406,3503.7,3503.4,0.1424]
[1754125687583,0.6383,3503.9,3503.4,0.1424]
[1754125687784,0.9406,3503.8,3503.4,0.1424]
[1754125687982,0.4959,3503.7,3503.4,0.1424]
[1754125688384,0.4959,3504.0,3503.6,0.1424]
[1754125688591,0.4959,3503.9,3503.6,0.1424]
[1754125688781,0.9406,3503.9,3503.6,0.1424]
[1754125688985,0.9406,3503.8,3503.6,0.1424]
[1754125689406,0.9406,3503.7,3503.6,0.1424]
[1754125690508,0.9406,3503.7,3503.1,0.63040598]
[1754125690731,0.9406,3503.7,3503.0,5.38015983]
[1754125690732,0.4447,3503.7,3503.4,0.103986]
[1754125691016,0.9406,3503.6,3503.4,0.103986]
[1754125691218,0.1424,3503.9,3503.4,0.103986]
[1754125691513,0.4447,3503.8,3503.4,0.103986]
[1754125691711,0.1424,3503.9,3503.4,0.103986]
[1754125691873,0.9406,3503.7,3503.4,0.103986]
[1754125692072,0.9406,3503.6,3503.4,0.103986]
[1754125692309,0.4959,3503.5,3503.4,0.103986]
[1754125693199,0.4969,3504.1,3503.4,0.103986]
[1754125693425,0.6393,3504.1,3503.5,0.02854288]
[1754125693637,0.6393,3504.1,3503.6,0.1424]
[1754125693809,0.1434,3504.1,3503.6,0.1424]
[1754125694015,0.9406,3504.0,3503.6,0.1424]
[1754125694435,0.001,3504.1,3503.7,8.46769833]
[1754125694735,0.001,3504.1,3503.9,0.1424]
[1754125695740,0.001,3504.1,3503.7,8.95029833]
[1754125695741,0.9406,3504.0,3503.7,0.1424]
[1754125695900,0.001,3504.1,3503.7,0.1424]
[1754125696100,0.9406,3504.0,3503.7,0.1424]
[1754125696326,0.9406,3503.9,3503.7,0.1424]
[1754125697009,0.4959,3503.9,3503.7,0.1424]
[1754125697328,0.4969,3504.1,3503.7,0.1424]
[1754125697841,0.001,3504.1,3504.0,0.1424]
[1754125699246,0.001,3504.1,3504.0,0.625]
[1754125699832,0.001,3504.1,3504.0,1.0643]
[1754125700222,0.001,3504.1,3504.0,0.1424]
[1754125700543,0.9416,3504.1,3504.0,4.5754]
[1754125700731,0.001,3504.1,3504.0,4.5754]
[1754125701510,0.001,3504.1,3504.0,5.4973]
[1754125702738,0.001,3504.1,3504.0,4.5754]
[1754125702939,0.001,3504.1,3504.0,5.92549383]
[1754125703528,0.001,3504.1,3504.0,0.1424]
[1754125703844,0.9147,3504.1,3504.0,0.1424]
[1754125704753,0.001,3504.1,3504.0,0.1424]
[1754125705135,30.0,3503.8,3503.3,0.002]
[1754125705335,3.08300146,3503.7,3503.3,0.002]
[1754125705630,1.718,3503.5,3503.3,0.002]
[1754125706040,2.6317,3503.4,3503.3,0.002]
[1754125708358,0.9137,3503.4,3503.3,0.002]
[1754125713280,2.6317,3503.4,3503.3,0.002]
[1754125715283,2.7741,3503.4,3503.3,0.002]
[1754125715509,36.37297043,3503.4,3503.3,0.002]
[1754125715780,41.36897043,3503.4,3503.3,0.002]
[1754125716363,40.81897043,3503.4,3503.3,0.002]
[1754125716563,10.81897043,3503.4,3503.3,0.002]